[Event "Catalonia Championship Veterans 2024"]
[Site "Salou Tarragona"]
[Date "2024.05.19"]
[Round "9.1"]
[White "Lacasa Diaz, Josep Anton"]
[Black "Parals Marce, Luis"]
[Result "1-0"]
[ECO "B06"]
[WhiteElo "2335"]
[BlackElo "2000"]
[Annotator "TA"]
[PlyCount "31"]
[EventDate "2024.05.11"]
[EventType "swiss"]
[EventCountry "ESP"]
[SourceTitle "playchess.com"]
[Source "ChessBase"]
[SourceQuality "1"]
[TimeControl "5400+30"]

{[%evp 9,31,38,70,80,82,76,69,74,123,116,116,121,148,111,177,169,570,530,534,514,1363,1343,1424,1410]} 1. Nf3 {[%emt 0:00:04]} g6 {[%emt 0:00:37]} 2. e4 {[%emt 0:01:38]} Bg7 {[%emt 0:00:35]} 3. d4 {[%emt 0:00:10]} d6 {[%emt 0:00:59]} 4. Nc3 {[%emt 0:00:56]} Nc6 {[%emt 0:05:53]} 5. Be3 {[%emt 0:05:46]} e5 {[%emt 0:02:28]} 6. dxe5 {[%emt 0:02:47]} Nxe5 {[%emt 0:01:36]} 7. Nxe5 {[%emt 0:06:12]} Bxe5 {[%emt 0:00:52]} 8. Qd2 {[%emt 0:01:11] White is slightly better.} Be6 {[%emt 0:03:48]} ({Black should try} 8... Nf6) 9. f4 {[%emt 0:03:11][%cal Bf2f4,Bf4f5][%mdl 32]} Bg7 {[%emt 0:00:14]} 10. O-O-O {[%emt 0:01:30]} a6 {[%emt 0:11:46] Against Bb5+} 11. Bd3 {[%emt 0:10:10]} b5 {[%emt 0:05:28]} (11... Ne7 $16) 12. f5 $18 {[%emt 0:01:31]} b4 $2 {[%emt 0:02:05] [#]} (12... Bd7 13. g4 Nf6) 13. fxe6 {[%emt 0:03:02] White is clearly winning.} bxc3 {[%emt 0:01:06]} 14. exf7+ {[%emt 0:00:25]} ({And not} 14. bxc3 fxe6 15. Bc4 Qe7 $11) 14... Kxf7 {[%emt 0:10:56]} (14... Kd7 $142) 15. Bc4+ {[%emt 0:00:43]} Ke8 {[%emt 0:00:28]} 16. Qd5 {[%emt 0:01:23] Black did not feel at home in the position after the opening.   Weighted Error Value: White=0.07 (flawless) /Black=1.21.  Mistake:       	---       	Black=4      OK:         	White=2     	Black=2      Best:        	White=3     	---} 1-0

[Event "Catalonia Championship Veterans 2024"]
[Site "Salou Tarragona"]
[Date "2024.05.19"]
[Round "9.2"]
[White "Brusi Noguera, Ricardo Ll."]
[Black "Torrecillas Martinez, Antonio"]
[Result "1/2-1/2"]
[ECO "D05"]
[WhiteElo "2059"]
[BlackElo "2298"]
[Annotator "RC"]
[PlyCount "71"]
[EventDate "2024.05.11"]
[EventType "swiss"]
[EventCountry "ESP"]
[SourceTitle "playchess.com"]
[Source "ChessBase"]
[SourceQuality "1"]
[TimeControl "5400+30"]

1. Nf3 {[%emt 0:00:09]} Nf6 {[%emt 0:00:05]} 2. b3 {[%emt 0:00:17]} d5 {[%emt 0:04:49]} 3. e3 {[%emt 0:01:28]} e6 {[%emt 0:00:29]} 4. d4 {[%emt 0:01:33]} Be7 {[%emt 0:00:30]} 5. Bd3 {[%emt 0:00:32]} O-O {[%emt 0:00:43]} 6. Nbd2 {[%emt 0:02:40]} c5 {[%emt 0:01:20]} 7. O-O {[%emt 0:00:45]} Nc6 {[%emt 0:03:25]} 8. Bb2 {[%emt 0:00:27]} b6 {[%emt 0:06:18]} 9. Ne5 {[%emt 0:02:55]} Bb7 {[%emt 0:07:52]} 10. a3 {[%emt 0:03:21]} Nxe5 {[%emt 0:15:47]} 11. dxe5 {[%emt 0:00:31]} Ne4 {[%emt 0:00:08]} 12. Nxe4 {[%emt 0:07:00]} dxe4 {[%emt 0:00:36]} 13. Bc4 {[%emt 0:02:45]} a6 {[%emt 0:03:33]} 14. Qxd8 {[%emt 0:06:17]} Rfxd8 {[%emt 0:00:16]} 15. Rfd1 {[%emt 0:00:06]} b5 {[%emt 0:02:01]} 16. Be2 {[%emt 0:00:27]} Bc6 {[%emt 0:02:11]} 17. Rxd8+ {[%emt 0:03:00]} Rxd8 {[%emt 0:08:57]} 18. Rd1 {[%emt 0:00:10]} a5 {[%emt 0:05:33]} 19. Rxd8+ {[%emt 0:08:23]} Bxd8 {[%emt 0:00:29]} 20. c4 {[%emt 0:04:15]} b4 {[%emt 0:02:05]} 21. Kf1 {[%emt 0:06:12]} f5 {[%emt 0:10:48]} 22. f4 {[%emt 0:09:28]} exf3 {[%emt 0:04:08]} 23. Bxf3 {[%emt 0:01:16]} Bxf3 {[%emt 0:01:44]} 24. gxf3 {[%emt 0:00:02]} Kf7 {[%emt 0:05:06]} 25. a4 {[%emt 0:03:32]} Kg6 {[%emt 0:00:07]} 26. Kg2 {[%emt 0:02:12]} Kh5 {[%emt 0:00:02]} 27. Bc1 {[%emt 0:03:11]} g5 {[%emt 0:02:59]} 28. Kg3 {[%emt 0:07:55]} g4 {[%emt 0:01:42]} 29. f4 {[%emt 0:07:21]} Bh4+ {[%emt 0:02:14]} 30. Kg2 {[%emt 0:00:03]} Kg6 {[%emt 0:01:55]} 31. Bd2 {[%emt 0:00:53]} h5 {[%emt 0:00:21]} 32. Kf1 {[%emt 0:05:51]} Be7 {[%emt 0:01:27]} 33. Kg2 {[%emt 0:00:39]} h4 {[%emt 0:00:18]} 34. h3 {[%emt 0:00:49]} Kh5 {[%emt 0:01:42]} 35. Bc1 {[%emt 0:00:45]} Bf8 {[%emt 0:02:32]} 36. Bb2 {[%emt 0:00:20]} 1/2-1/2

[Event "Catalonia Championship Veterans 2024"]
[Site "Salou Tarragona"]
[Date "2024.05.19"]
[Round "9.3"]
[White "Cuadras Avellana, Jordi"]
[Black "Fernandez Muixi, Francesc"]
[Result "1-0"]
[ECO "A18"]
[WhiteElo "2176"]
[BlackElo "1988"]
[Annotator "RC"]
[PlyCount "100"]
[EventDate "2024.05.11"]
[EventType "swiss"]
[EventCountry "ESP"]
[SourceTitle "playchess.com"]
[Source "ChessBase"]
[SourceQuality "1"]
[TimeControl "5400+30"]

1. c4 {[%emt 0:00:05]} Nf6 {[%emt 0:00:52]} 2. Nc3 {[%emt 0:00:38]} e6 {[%emt 0:00:11]} 3. e4 {[%emt 0:01:30]} d5 {[%emt 0:02:17]} 4. e5 {[%emt 0:00:29]} Nfd7 {[%emt 0:00:15]} 5. d4 {[%emt 0:02:22]} dxc4 {[%emt 0:00:26]} 6. Bxc4 {[%emt 0:01:18]} Nb6 {[%emt 0:00:41]} 7. Bb3 {[%emt 0:05:25]} Nc6 {[%emt 0:02:46]} 8. Nf3 {[%emt 0:00:47]} Nb4 {[%emt 0:01:05]} 9. O-O {[%emt 0:01:14]} Be7 {[%emt 0:00:59]} 10. Qe2 {[%emt 0:02:56]} Bd7 {[%emt 0:05:40]} 11. a3 {[%emt 0:10:25]} N4d5 {[%emt 0:00:43]} 12. Ne4 {[%emt 0:02:15]} h6 {[%emt 0:11:42]} 13. Bc2 {[%emt 0:03:28]} Bc6 {[%emt 0:02:07]} 14. Bd2 {[%emt 0:02:40]} Qd7 {[%emt 0:04:32]} 15. Bd3 {[%emt 0:03:19]} a6 {[%emt 0:07:50]} 16. Rfc1 {[%emt 0:09:45]} Bb5 {[%emt 0:03:28]} 17. b3 {[%emt 0:07:29]} Bxd3 {[%emt 0:01:31]} 18. Qxd3 {[%emt 0:00:05]} O-O {[%emt 0:04:57]} 19. Nc5 {[%emt 0:03:55]} Qc8 {[%emt 0:01:16]} 20. Qe4 {[%emt 0:01:09]} Rb8 {[%emt 0:11:40]} 21. Qg4 {[%emt 0:00:33]} Kh7 {[%emt 0:01:09]} 22. Re1 {[%emt 0:03:05]} Rh8 {[%emt 0:01:54]} 23. Qh3 {[%emt 0:02:03]} Kg8 {[%emt 0:03:31]} 24. Re4 {[%emt 0:00:48]} Qf8 {[%emt 0:03:55]} 25. Rg4 {[%emt 0:03:18]} Bxc5 {[%emt 0:01:55]} 26. dxc5 {[%emt 0:00:08]} Qxc5 {[%emt 0:00:21]} 27. Re1 {[%emt 0:06:58]} Qxa3 {[%emt 0:01:49]} 28. Qg3 {[%emt 0:02:04]} Qf8 {[%emt 0:00:41]} 29. h4 {[%emt 0:02:50]} c5 {[%emt 0:02:51]} 30. h5 {[%emt 0:01:25]} Ne7 {[%emt 0:01:23]} 31. Nh4 {[%emt 0:00:30]} Nbd5 {[%emt 0:00:18]} 32. f4 {[%emt 0:04:27]} f5 {[%emt 0:02:55]} 33. exf6 {[%emt 0:01:44]} Qxf6 {[%emt 0:00:12]} 34. Ng6 {[%emt 0:00:55]} Nf5 {[%emt 0:06:18]} 35. Qd3 {[%emt 0:00:57]} Rh7 {[%emt 0:01:20]} 36. Ne5 {[%emt 0:00:14]} Rd8 {[%emt 0:01:19]} 37. Qe4 {[%emt 0:01:24]} Rh8 {[%emt 0:02:24]} 38. Rg6 {[%emt 0:01:23]} Qe7 {[%emt 0:01:08]} 39. Nf3 {[%emt 0:00:11]} Nf6 {[%emt 0:00:52]} 40. Qxf5 {[%emt 0:01:15]} Rd6 {[%emt 0:01:33]} 41. Qc2 {[%emt 0:00:54]} b6 {[%emt 0:00:25]} 42. f5 {[%emt 0:00:40]} Kf7 {[%emt 0:01:57]} 43. Bc3 {[%emt 0:01:09]} Ke8 {[%emt 0:01:12]} 44. Bxf6 {[%emt 0:01:10]} gxf6 {[%emt 0:00:09]} 45. Qe4 {[%emt 0:00:22]} e5 {[%emt 0:00:31]} 46. Qa8+ {[%emt 0:01:55]} Qd8 {[%emt 0:00:17]} 47. Qxa6 {[%emt 0:00:34]} Rd1 {[%emt 0:02:42]} 48. Rxd1 {[%emt 0:00:51]} Qxd1+ {[%emt 0:00:02]} 49. Kh2 {[%emt 0:00:10]} Qd8 {[%emt 0:02:06]} 50. Qb7 {[%emt 0:01:22]} Qe7 {[%emt 0:00:43]} 1-0

[Event "Catalonia Championship Veterans 2024"]
[Site "Salou Tarragona"]
[Date "2024.05.19"]
[Round "9.4"]
[White "Sanchez Criado, Lluis"]
[Black "Melero Sanchez, Pere"]
[Result "1/2-1/2"]
[ECO "E12"]
[WhiteElo "2060"]
[BlackElo "1934"]
[Annotator "RC"]
[PlyCount "34"]
[EventDate "2024.05.11"]
[EventType "swiss"]
[EventCountry "ESP"]
[SourceTitle "playchess.com"]
[Source "ChessBase"]
[SourceQuality "1"]
[TimeControl "5400+30"]

1. d4 {[%emt 0:00:03]} Nf6 {[%emt 0:00:02]} 2. c4 {[%emt 0:00:09]} e6 {[%emt 0:00:03]} 3. Nf3 {[%emt 0:00:15]} b6 {[%emt 0:00:10]} 4. a3 {[%emt 0:00:21]} Bb7 {[%emt 0:00:10]} 5. Nc3 {[%emt 0:00:12]} d5 {[%emt 0:00:16]} 6. Bg5 {[%emt 0:02:49]} Be7 {[%emt 0:00:39]} 7. e3 {[%emt 0:00:16]} O-O {[%emt 0:00:30]} 8. Bd3 {[%emt 0:03:24]} Nbd7 {[%emt 0:01:48]} 9. O-O {[%emt 0:00:22]} c5 {[%emt 0:08:31]} 10. Qe2 {[%emt 0:07:41]} Ne4 {[%emt 0:02:15]} 11. Bxe7 {[%emt 0:01:15]} Qxe7 {[%emt 0:00:02]} 12. Rac1 {[%emt 0:03:31]} f5 {[%emt 0:01:55]} 13. cxd5 {[%emt 0:06:18]} exd5 {[%emt 0:01:40]} 14. Ba6 {[%emt 0:01:19]} Bc6 {[%emt 0:09:07]} 15. Bb5 {[%emt 1:10:05]} Bb7 {[%emt 0:13:37]} 16. Ba6 {[%emt 0:00:00]} Bc6 {[%emt 0:00:46]} 17. Bb5 {[%emt 0:00:00]} Bb7 {[%emt 0:57:29]} 1/2-1/2

[Event "Catalonia Championship Veterans 2024"]
[Site "Salou Tarragona"]
[Date "2024.05.19"]
[Round "9.5"]
[White "Vallbona Domingo, Joan"]
[Black "Pogorelov, Ruslan"]
[Result "0-1"]
[ECO "A37"]
[WhiteElo "1938"]
[BlackElo "2282"]
[Annotator "RC"]
[PlyCount "66"]
[EventDate "2024.05.11"]
[EventType "swiss"]
[EventCountry "ESP"]
[SourceTitle "playchess.com"]
[Source "ChessBase"]
[SourceQuality "1"]
[TimeControl "5400+30"]

1. c4 {[%emt 0:00:06]} c5 {[%emt 0:00:07]} 2. g3 {[%emt 0:00:05]} g6 {[%emt 0:00:17]} 3. Bg2 {[%emt 0:00:05]} Bg7 {[%emt 0:00:09]} 4. Nc3 {[%emt 0:00:08]} Nc6 {[%emt 0:00:11]} 5. Nf3 {[%emt 0:00:10]} b6 {[%emt 0:00:32]} 6. a3 {[%emt 0:01:00]} Bb7 {[%emt 0:00:27]} 7. e3 {[%emt 0:04:49]} Bxc3 {[%emt 0:00:12]} 8. bxc3 {[%emt 0:01:30]} f5 {[%emt 0:00:28]} 9. d3 {[%emt 0:02:39]} Nf6 {[%emt 0:05:57]} 10. Ne5 {[%emt 0:04:35]} Qc7 {[%emt 0:01:12]} 11. Bxc6 {[%emt 0:04:54]} Bxc6 {[%emt 0:00:19]} 12. Nxc6 {[%emt 0:00:12]} Qxc6 {[%emt 0:00:19]} 13. f3 {[%emt 0:00:08]} h5 {[%emt 0:02:54]} 14. Rg1 {[%emt 0:04:40]} Kf7 {[%emt 0:01:53]} 15. Qe2 {[%emt 0:03:17]} g5 {[%emt 0:06:15]} 16. Bb2 {[%emt 0:14:54]} g4 {[%emt 0:00:59]} 17. Rf1 {[%emt 0:00:51]} gxf3 {[%emt 0:15:29]} 18. Rxf3 {[%emt 0:02:20]} e6 {[%emt 0:01:16]} 19. O-O-O {[%emt 0:00:28]} Ke7 {[%emt 0:00:53]} 20. Rdf1 {[%emt 0:01:12]} Raf8 {[%emt 0:00:32]} 21. Kb1 {[%emt 0:01:46]} h4 {[%emt 0:05:11]} 22. Bc1 {[%emt 0:03:17]} hxg3 {[%emt 0:01:37]} 23. Rxg3 {[%emt 0:02:28]} Ke8 {[%emt 0:02:21]} 24. Rfg1 {[%emt 0:03:45]} Ng4 {[%emt 0:04:41]} 25. R1g2 {[%emt 0:02:15]} Ne5 {[%emt 0:02:14]} 26. Rg5 {[%emt 0:06:38]} b5 {[%emt 0:05:47]} 27. Ka1 {[%emt 0:06:15]} bxc4 {[%emt 0:00:37]} 28. dxc4 {[%emt 0:00:37]} Kd8 {[%emt 0:04:23]} 29. Rg7 {[%emt 0:02:06]} Kc7 {[%emt 0:02:22]} 30. R7g5 {[%emt 0:07:40]} Qe4 {[%emt 0:02:00]} 31. Qc2 {[%emt 0:03:35]} Qxc2 {[%emt 0:02:02]} 32. Rxc2 {[%emt 0:00:01]} Kc6 {[%emt 0:01:19]} 33. e4 {[%emt 0:02:03]} Nf3 {[%emt 0:00:15]} 0-1

[Event "Catalonia Championship Veterans 2024"]
[Site "Salou Tarragona"]
[Date "2024.05.19"]
[Round "9.7"]
[White "Franzoni Ladron de Guevara, Enric"]
[Black "Palacin Martin, Ricardo"]
[Result "1/2-1/2"]
[ECO "B31"]
[WhiteElo "1854"]
[BlackElo "1968"]
[Annotator "RC"]
[PlyCount "117"]
[EventDate "2024.05.11"]
[EventType "swiss"]
[EventCountry "ESP"]
[SourceTitle "playchess.com"]
[Source "ChessBase"]
[SourceQuality "1"]
[TimeControl "5400+30"]

1. e4 {[%emt 0:00:03]} c5 {[%emt 0:00:06]} 2. Nf3 {[%emt 0:00:10]} Nc6 {[%emt 0:00:06]} 3. Bb5 {[%emt 0:00:09]} g6 {[%emt 0:00:05]} 4. O-O {[%emt 0:00:14]} Bg7 {[%emt 0:00:03]} 5. Re1 {[%emt 0:00:26]} e5 {[%emt 0:00:12]} 6. Bxc6 {[%emt 0:00:21]} bxc6 {[%emt 0:00:14]} 7. c4 {[%emt 0:00:29]} Ne7 {[%emt 0:00:54]} 8. d3 {[%emt 0:00:37]} h6 {[%emt 0:00:30]} 9. Nc3 {[%emt 0:00:30]} d6 {[%emt 0:00:13]} 10. h3 {[%emt 0:00:39]} Be6 {[%emt 0:00:39]} 11. Qa4 {[%emt 0:00:37]} Qd7 {[%emt 0:00:29]} 12. Kh2 {[%emt 0:00:28]} O-O {[%emt 0:01:10]} 13. Rb1 {[%emt 0:04:04]} Rab8 {[%emt 0:01:29]} 14. b4 {[%emt 0:00:42]} cxb4 {[%emt 0:01:10]} 15. Rxb4 {[%emt 0:00:19]} Rxb4 {[%emt 0:00:04]} 16. Qxb4 {[%emt 0:00:10]} c5 {[%emt 0:00:07]} 17. Qa3 {[%emt 0:03:55]} Nc6 {[%emt 0:04:35]} 18. Bd2 {[%emt 0:01:43]} Rb8 {[%emt 0:01:03]} 19. Rb1 {[%emt 0:02:33]} Rxb1 {[%emt 0:00:18]} 20. Nxb1 {[%emt 0:00:05]} Qb7 {[%emt 0:00:13]} 21. Qc1 {[%emt 0:00:54]} Kh7 {[%emt 0:00:37]} 22. Nc3 {[%emt 0:02:10]} f5 {[%emt 0:05:15]} 23. Nb5 {[%emt 0:05:33]} a6 {[%emt 0:04:22]} 24. Nc3 {[%emt 0:04:25]} f4 {[%emt 0:03:00]} 25. Qc2 {[%emt 0:04:16]} Bf6 {[%emt 0:04:00]} 26. Qb3 {[%emt 0:02:49]} Qxb3 {[%emt 0:04:08]} 27. axb3 {[%emt 0:00:14]} Bd8 {[%emt 0:00:04]} 28. Nd5 {[%emt 0:03:58]} Kg7 {[%emt 0:02:04]} 29. Bc3 {[%emt 0:01:11]} Kf7 {[%emt 0:00:32]} 30. Kg1 {[%emt 0:00:51]} g5 {[%emt 0:02:03]} 31. Nd2 {[%emt 0:01:06]} h5 {[%emt 0:01:53]} 32. Kf1 {[%emt 0:01:52]} g4 {[%emt 0:01:02]} 33. hxg4 {[%emt 0:00:21]} hxg4 {[%emt 0:00:09]} 34. Ke2 {[%emt 0:03:51]} Kg6 {[%emt 0:11:38]} 35. Kf1 {[%emt 0:02:15]} Kh5 {[%emt 0:01:15]} 36. Kg1 {[%emt 0:01:25]} Kh4 {[%emt 0:00:50]} 37. Kh1 {[%emt 0:04:02]} g3 {[%emt 0:00:44]} 38. f3 {[%emt 0:01:16]} Kg5 {[%emt 0:00:19]} 39. Kg1 {[%emt 0:00:45]} Kg6 {[%emt 0:00:07]} 40. Kf1 {[%emt 0:00:57]} Kf7 {[%emt 0:00:06]} 41. Nb1 {[%emt 0:00:54]} Ke8 {[%emt 0:00:36]} 42. Na3 {[%emt 0:00:25]} Kd7 {[%emt 0:00:30]} 43. Nc2 {[%emt 0:00:52]} Kc8 {[%emt 0:07:52]} 44. b4 {[%emt 0:01:49]} cxb4 {[%emt 0:01:06]} 45. Ncxb4 {[%emt 0:01:38]} Kb7 {[%emt 0:05:11]} 46. Nxc6 {[%emt 0:05:28]} Kxc6 {[%emt 0:01:03]} 47. Nb4+ {[%emt 0:00:16]} Kb7 {[%emt 0:02:07]} 48. Nc2 {[%emt 0:00:39]} Bb6 {[%emt 0:01:15]} 49. Ke2 {[%emt 0:02:30]} Bf2 {[%emt 0:01:55]} 50. Bb4 {[%emt 0:02:02]} Kc6 {[%emt 0:00:34]} 51. Na1 {[%emt 0:02:33]} Kc7 {[%emt 0:12:30]} 52. Nb3 {[%emt 0:01:01]} Bb6 {[%emt 0:03:16]} 53. Kf1 {[%emt 0:01:06]} Bd7 {[%emt 0:00:44]} 54. Ke2 {[%emt 0:01:04]} Ba4 {[%emt 0:00:24]} 55. Na5 {[%emt 0:00:30]} Bc5 {[%emt 0:02:38]} 56. Bc3 {[%emt 0:01:44]} Kb6 {[%emt 0:00:08]} 57. Bd2 {[%emt 0:01:13]} Bd4 {[%emt 0:02:00]} 58. Bb4 {[%emt 0:00:35]} Bb2 {[%emt 0:01:37]} 59. Ke1 {[%emt 0:01:35]} 1/2-1/2

[Event "Catalonia Championship Veterans 2024"]
[Site "Salou Tarragona"]
[Date "2024.05.19"]
[Round "9.9"]
[White "Tosan Pereira, Felipe"]
[Black "Fernandez Vicente, Carmelo"]
[Result "0-1"]
[ECO "B40"]
[WhiteElo "2062"]
[BlackElo "2005"]
[Annotator "NA RC"]
[PlyCount "110"]
[EventDate "2024.05.11"]
[EventType "swiss"]
[EventCountry "ESP"]
[SourceTitle "playchess.com"]
[Source "ChessBase"]
[SourceQuality "1"]
[TimeControl "5400+30"]

{[%evp 12,97,13,32767,32767,32767,32767,32767,32767,32767,32767,32767,32767,32767,32767,32767,32767,110,104,32767,32767,32767,114,104,89,72,97,76,80,37,98,99,148,112,113,32767,32767,32767,32767,98,113,114,148,87,160,135,142,149,32767,32767,186,32767,178,90,138,0,33,0,0,0,32767,32767,32767,-8,-18,-44,-47,-50,-53,-192,-191,32767,-204,-201,-164,-178,32767,-165,32767,-139,-2,32767,32767,32767,-25,-87,-52,-63]} 1. e4 {[%emt 0:00:02]} c5 {[%emt 0:00:53]} 2. Nf3 {[%emt 0:00:17]} e6 {[%emt 0:00:12]} 3. d3 {[%emt 0:00:12]} Nc6 {[%emt 0:01:01]} 4. g3 {[%emt 0:00:08]} g6 {[%emt 0:00:42]} 5. d4 {[%emt 0:04:14]} cxd4 {[%emt 0:01:22]} 6. Nxd4 {[%emt 0:00:02]} Qa5+ {[%emt 0:02:49] B40: Sicilian: 2...e6, Unusual lines.} 7. Nc3 {[%emt 0:05:17]} Nf6 {[%emt 0:01:40]} 8. Nb3 {[%emt 0:03:56]} Qd8 {[%emt 0:06:53]} 9. Bf4 {[%emt 0:05:32]} a6 {[%emt 0:00:50]} 10. Bg2 {[%emt 0:00:20]} Nh5 {[%emt 0:01:08]} 11. Be3 {[%emt 0:00:56]} Be7 {[%emt 0:01:42]} 12. Na4 {[%emt 0:06:34]} O-O {[%emt 0:02:19]} 13. Nb6 {[%emt 0:01:49]} Rb8 {[%emt 0:00:19]} 14. O-O {[%emt 0:07:41]} d6 {[%emt 0:01:21]} 15. a4 {[%emt 0:00:28]} Ng7 {[%emt 0:02:16]} 16. a5 {[%emt 0:03:45]} e5 {[%emt 0:05:39]} 17. Nxc8 {[%emt 0:04:24]} Qxc8 {[%emt 0:00:40]} 18. Qd2 {[%emt 0:12:37]} Kh8 {[%emt 1:07:44]} 19. Bb6 {[%emt 0:06:13]} Ne8 {[%emt 0:00:00]} 20. Qh6 {[%emt 0:01:01]} (20. c3 $16) 20... Qg4 {[%emt 0:00:00]} (20... Nf6 $14) 21. Nd2 {[%emt 0:07:00]} Qg5 {[%emt 0:00:00]} (21... Ng7 $142) 22. Be3 {[%emt 0:02:05]} Qxh6 {[%emt 0:00:00]} 23. Bxh6 {[%emt 0:00:07]} Ng7 {[%emt 0:00:00]} 24. Nc4 {[%emt 0:01:56]} Rfd8 {[%emt 0:00:00]} 25. f4 {[%emt 0:01:50]} (25. Rad1 $18) 25... Kg8 {[%emt 0:00:00]} ({Black should try} 25... exf4 26. Bxf4 (26. gxf4 f5 $16) (26. Rxf4 Kg8 $16) 26... Ne6) 26. f5 {[%emt 0:01:09]} Ne8 {[%emt 0:00:00]} (26... gxf5 $142 27. Nb6 (27. exf5 d5 $16) 27... f4) 27. Be3 {[%emt 0:00:56]} (27. Ne3 $142) 27... Kg7 {[%emt 0:00:00]} (27... Nd4 $142) 28. Bb6 {[%emt 0:00:10]} Rdc8 {[%emt 0:00:00]} 29. fxg6 {[%emt 0:01:04]} hxg6 {[%emt 0:00:00]} 30. Bh3 {[%emt 0:00:07]} Nd4 {[%emt 0:00:00]} (30... Nf6 $16) 31. Bxc8 {[%emt 0:00:24]} Rxc8 {[%emt 0:00:00]} 32. Na3 {[%emt 0:04:30]} ({White should play} 32. b3 $18) 32... Bg5 {[%emt 0:00:00]} (32... Ne6 $1 $14) 33. c3 $2 {[%emt 0:00:40]} (33. h4 $18 Bh6 34. g4) 33... Nb3 {[%emt 0:00:00]} 34. Rad1 {[%emt 0:02:05]} (34. Ra2 $1 $14) 34... Nd2 {[%emt 0:00:00]} 35. Rxd2 {[%emt 0:18:29]} Bxd2 {[%emt 0:08:30]} 36. Rd1 {[%emt 0:00:00]} Bg5 {[%emt 0:00:00]} 37. Kf2 {[%emt 0:00:00]} f5 {[%emt 0:00:00]} 38. Kf3 {[%emt 0:00:00]} Kf7 {[%emt 0:00:00]} 39. Nc2 {[%emt 0:00:00]} Ke6 {[%emt 0:00:00]} 40. g4 {[%emt 0:00:00]} (40. Re1 $15) 40... fxe4+ {[%emt 0:00:00]} 41. Kxe4 {[%emt 0:00:00]} Nf6+ {[%emt 0:00:00]} 42. Kf3 {[%emt 0:00:00]} Nd5 {[%emt 0:00:00]} 43. Bf2 {[%emt 0:00:00]} Rf8+ {[%emt 0:00:00]} 44. Ke2 {[%emt 0:00:00]} Nf4+ {[%emt 0:00:00]} 45. Ke1 {[%emt 0:00:00] [#]} Bh4 $2 {[%emt 0:00:00]} 46. Bxh4 {[%emt 0:00:00]} Ng2+ {[%emt 0:00:00]} 47. Ke2 {[%emt 0:00:00]} Nxh4 {[%emt 0:00:00]} 48. Rg1 {[%emt 0:01:29]} (48. Ne3 $11 {keeps the balance.}) 48... Rf4 {[%emt 0:00:00]} 49. Ne3 $15 {[%emt 0:01:04]} Ra4 {[%emt 0:00:00]} 50. Rd1 {[%emt 0:00:37]} g5 {[%emt 0:00:00]} 51. Rd2 {[%emt 0:01:25]} Ng6 {[%emt 0:00:00]} 52. b4 {[%emt 0:00:28]} Nf4+ {[%emt 0:00:00]} 53. Kf3 {[%emt 0:00:32]} d5 {[%emt 0:00:00]} 54. Nd1 {[%emt 0:02:01]} Ra3 {[%emt 0:00:00]} 55. Kf2 {[%emt 0:00:44]} e4 {[%emt 0:00:00]} 0-1

[Event "Catalonia Championship Veterans 2024"]
[Site "Salou Tarragona"]
[Date "2024.05.19"]
[Round "9.10"]
[White "Soler Bel, Josep"]
[Black "Mas Recorda, Pere"]
[Result "1-0"]
[ECO "A03"]
[WhiteElo "1895"]
[BlackElo "1932"]
[Annotator "RC"]
[PlyCount "55"]
[EventDate "2024.05.11"]
[EventType "swiss"]
[EventCountry "ESP"]
[SourceTitle "playchess.com"]
[Source "ChessBase"]
[SourceQuality "1"]
[TimeControl "5400+30"]

1. f4 {[%emt 0:00:10]} d5 {[%emt 0:00:24]} 2. e3 {[%emt 0:00:22]} g6 {[%emt 0:00:29]} 3. Nf3 {[%emt 0:00:14]} Bg7 {[%emt 0:00:54]} 4. d4 {[%emt 0:00:02]} Nf6 {[%emt 0:00:19]} 5. c3 {[%emt 0:00:26]} O-O {[%emt 0:01:35]} 6. Bd3 {[%emt 0:00:23]} Bf5 {[%emt 0:00:25]} 7. O-O {[%emt 0:01:56]} Nbd7 {[%emt 0:01:03]} 8. Ne5 {[%emt 0:01:13]} e6 {[%emt 0:02:20]} 9. Kh1 {[%emt 0:03:18]} Bxd3 {[%emt 0:01:11]} 10. Qxd3 {[%emt 0:00:54]} Ne4 {[%emt 0:00:19]} 11. Nd2 {[%emt 0:00:51]} f5 {[%emt 0:02:19]} 12. Ndf3 {[%emt 0:00:53]} Ndf6 {[%emt 0:00:59]} 13. Bd2 {[%emt 0:01:15]} a6 {[%emt 0:02:07]} 14. Be1 {[%emt 0:00:25]} Nd6 {[%emt 0:03:06]} 15. Bh4 {[%emt 0:00:38]} Qe8 {[%emt 0:00:19]} 16. a4 {[%emt 0:01:45]} Nd7 {[%emt 0:00:45]} 17. b4 {[%emt 0:01:17]} c6 {[%emt 0:00:33]} 18. g4 {[%emt 0:05:05]} fxg4 {[%emt 0:04:16]} 19. Nxg4 {[%emt 0:00:22]} Nf5 {[%emt 0:03:14]} 20. Nge5 {[%emt 0:01:57]} Nxe5 {[%emt 0:04:05]} 21. dxe5 {[%emt 0:03:19]} Nxh4 {[%emt 0:00:25]} 22. Nxh4 {[%emt 0:00:08]} Qe7 {[%emt 0:00:21]} 23. Nxg6 {[%emt 0:00:43]} hxg6 {[%emt 0:00:12]} 24. Rg1 {[%emt 0:00:16]} Qf7 {[%emt 0:11:29]} 25. Rg5 {[%emt 0:01:11]} Rfe8 {[%emt 0:05:42]} 26. Rag1 {[%emt 0:00:15]} Kf8 {[%emt 0:00:12]} 27. Rxg6 {[%emt 0:00:49]} Bh8 {[%emt 0:00:12]} 28. Rh6 {[%emt 1:14:23]} 1-0